bitfinex/quotes_ETHUSD_20220123
["timestamp","ask_amount","ask_price","bid_price","bid_amount"]
[1642914624750,1.47542865,2434.7,2434.6,0.00170527]
[1642914625150,1.47542865,2434.7,2434.3,0.00341054]
[1642914625151,1.96942865,2434.7,2434.3,0.00341054]
[1642914625355,9.35865193,2434.7,2434.3,0.00341054]
[1642914625555,2.95,2434.6,2432.8,9.46314257]
[1642914625754,4.3239,2434.5,2433.9,0.0022737]
[1642914625954,0.20491,2434.4,2433.9,0.0022737]
[1642914626195,1.4923212,2434.1,2433.8,1.44406498]
[1642914626396,0.494,2434.0,2433.8,1.44406498]
[1642914626598,0.494,2433.9,2432.8,3.63236664]
[1642914626797,0.494,2433.8,2432.7,9.918]
[1642914626996,0.494,2433.7,2432.7,7.48]
[1642914627201,0.494,2433.6,2432.8,0.00625266]
[1642914627399,0.00113685,2434.1,2433.7,0.73858057]
[1642914627598,0.00113685,2434.1,2433.8,2.86356907]
[1642914628198,0.00113685,2434.1,2433.9,0.3]
[1642914628400,0.00113685,2434.1,2433.8,2.97786907]
[1642914628401,0.00113685,2434.1,2433.8,2.81356907]
[1642914629846,0.494,2434.8,2434.4,0.0022737]
[1642914630244,0.00341054,2434.7,2434.4,0.0022737]
[1642914630450,0.00341054,2434.7,2433.9,0.00113685]
[1642914630451,2.60491,2434.5,2433.9,0.00113685]
[1642914630645,0.494,2434.4,2433.9,0.00113685]
[1642914630845,0.494,2434.4,2433.8,0.00170527]
[1642914630846,1.49570527,2434.4,2433.8,0.00170527]
[1642914631044,0.00113685,2434.3,2433.8,0.00170527]
[1642914631245,0.494,2434.2,2433.8,0.00170527]
[1642914631446,0.494,2434.2,2434.0,1.28248653]
[1642914631649,1.71209993,2434.2,2433.9,1.11740765]
[1642914631846,0.494,2434.2,2433.9,1.11740765]
[1642914632245,0.494,2434.2,2433.8,0.00170527]
[1642914632649,3.38207393,2434.1,2433.8,0.00170527]
[1642914632846,0.494,2434.2,2433.8,0.00170527]
[1642914632847,0.494,2434.0,2433.8,0.00170527]
[1642914633050,0.494,2433.9,2433.8,0.00170527]
[1642914633348,1.63144282,2433.9,2433.8,0.00170527]
[1642914633599,0.494,2433.9,2433.8,0.00170527]
[1642914634503,2.02974185,2434.3,2433.8,0.00170527]
[1642914634702,1.09592989,2434.0,2433.8,0.00170527]
[1642914634902,0.494,2433.9,2433.8,0.00170527]
[1642914635109,2.95,2433.7,2432.0,1.50660384]
[1642914635306,2.95,2433.7,2431.3,6.98975319]
[1642914635307,0.01273345,2432.8,2432.1,2.2]
[1642914635505,0.01224859,2433.4,2432.1,0.0096632]
[1642914635506,0.494,2432.7,2432.1,0.0096632]
[1642914635707,0.04999999,2433.1,2432.1,0.0096632]
[1642914635708,0.494,2432.6,2432.1,0.0096632]
[1642914635903,0.494,2432.5,2432.2,1.3508034]
[1642914636103,1.21429999,2433.1,2432.2,1.3508034]
[1642914636305,0.494,2433.0,2432.3,0.00852635]
[1642914636504,1.52321,2433.0,2432.3,0.00852635]
[1642914636904,2.52321,2433.0,2432.3,0.00852635]
[1642914637105,1.13445529,2432.5,2432.3,0.00852635]
[1642914637354,0.494,2432.4,2432.3,0.00852635]
[1642914637752,1.65,2432.3,2432.2,1.3508034]
[1642914637952,2.3083,2432.3,2431.5,0.1643]
[1642914638148,1.53665346,2431.9,2431.6,1.37596964]
[1642914638349,3.2233462,2432.4,2432.3,2.88892236]
[1642914638551,3.2233462,2432.4,2430.3,0.01222009]
[1642914638552,2.95,2431.8,2430.3,0.01222009]
[1642914638756,2.95,2431.8,2429.7,3.07548019]
[1642914638757,0.01285557,2430.6,2429.0,1.50660384]
[1642914638957,0.6583,2430.5,2430.4,0.00682108]
[1642914639156,0.69891,2430.5,2428.9,0.1645]
[1642914639355,0.494,2430.5,2429.1,0.0073895]
[1642914639557,0.494,2430.5,2430.2,1.42919342]
[1642914639755,0.1643,2430.4,2429.3,2.84279622]
[1642914639956,0.494,2430.3,2429.1,0.0073895]
[1642914640156,0.6583,2430.2,2429.4,0.00568423]
[1642914640358,0.494,2430.1,2428.7,0.0096632]
[1642914640759,1.0,2430.5,2430.2,0.98799999]
[1642914640760,0.494,2430.5,2430.2,0.98799999]
[1642914640957,0.494,2431.4,2430.3,2.84279622]
[1642914641402,0.00511581,2431.3,2430.3,2.84279622]
[1642914641600,0.00511581,2431.3,2430.5,24.69152573]
[1642914641800,0.01236543,2432.3,2430.5,24.69152573]
[1642914641801,0.00454739,2431.2,2430.7,24.0]
[1642914642098,0.00397897,2431.1,2430.9,1.13942943]
[1642914642299,1.2909871,2431.3,2430.8,0.1645]
[1642914642602,0.01241051,2431.1,2430.9,0.24651225]
[1642914642799,0.01241051,2431.1,2429.2,9.1617]
[1642914642800,0.6585,2431.0,2429.2,9.1617]
[1642914643004,0.6585,2431.0,2429.3,0.1645]
[1642914643199,0.6585,2431.0,2430.3,0.00341054]
[1642914643603,0.494,2430.9,2430.3,0.00341054]
[1642914643805,0.1645,2430.8,2430.7,0.69152573]
[1642914644004,0.6585,2430.8,2430.3,0.00341054]
[1642914644303,0.6585,2430.8,2430.7,0.00113685]
[1642914644304,0.25752745,2430.8,2430.7,0.00113685]
[1642914644503,0.25752745,2430.8,2430.2,0.88913684]
[1642914644703,0.1645,2430.7,2430.3,0.00227369]
[1642914644951,0.494,2431.0,2430.3,0.00227369]
[1642914645150,2.60437772,2430.8,2430.3,0.00227369]
[1642914645355,0.6585,2430.7,2430.3,0.00227369]
[1642914645554,0.6585,2430.7,2430.3,2.84506991]
[1642914645750,0.00113685,2430.9,2430.3,0.00227369]
[1642914645951,0.00113685,2430.9,2430.4,0.00170527]
[1642914646352,0.00113685,2430.9,2430.5,1.53719648]
[1642914646551,0.00113685,2430.9,2430.5,2.22872221]
[1642914646752,0.00113685,2430.9,2430.6,0.3]
[1642914646952,3.685e-05,2430.9,2430.6,0.3]
[1642914647151,3.685e-05,2430.9,2430.7,2.84389622]
[1642914647356,3.685e-05,2430.9,2430.7,3.14389622]
[1642914647551,3.685e-05,2430.9,2430.8,6.79279622]
[1642914647753,3.685e-05,2430.9,2430.8,7.09279622]
[1642914647951,3.685e-05,2430.9,2430.8,2.95]
[1642914648455,3.685e-05,2430.9,2430.7,0.0011]
[1642914648897,3.685e-05,2430.9,2430.4,1.00280527]
[1642914649297,3.685e-05,2430.9,2430.5,0.00223685]
[1642914649699,3.685e-05,2430.9,2430.6,0.1645]
[1642914649896,0.04999999,2432.5,2431.0,0.00076315]
[1642914649897,1.33727384,2432.3,2431.0,0.00076315]
[1642914650099,0.1643,2432.2,2431.9,1.19965862]
[1642914650301,0.1643,2432.2,2431.1,3.44726483]
[1642914650499,0.1643,2432.2,2431.1,0.6]
[1642914650703,0.1643,2432.3,2431.2,3.73362285]
[1642914650902,0.1643,2432.3,2431.2,1.3]
[1642914651101,0.17225793,2432.3,2431.2,0.3]
[1642914651300,0.17225793,2432.3,2431.7,1.18802104]
[1642914651802,1.56323615,2432.2,2431.7,1.18802104]
[1642914652001,0.1643,2432.1,2431.7,1.18802104]
[1642914652202,0.17112108,2432.1,2431.7,1.18802104]
[1642914652448,0.00625266,2432.0,2431.7,1.18802104]
[1642914652648,1.36539979,2431.8,2431.0,0.16506315]
[1642914652851,0.1829653,2431.9,2431.0,0.16506315]
[1642914653049,0.00454739,2431.7,2431.0,0.16506315]
[1642914653252,0.1645,2431.6,2431.0,0.16506315]
[1642914653549,0.00341054,2431.5,2431.0,0.16506315]
[1642914653954,0.16734212,2431.4,2431.0,0.16506315]
[1642914654355,0.3,2432.2,2432.1,2.56623351]
[1642914655154,0.794,2432.2,2432.1,2.56623351]
[1642914655357,0.794,2432.2,2429.6,1.50660384]
[1642914655358,2.95,2432.0,2429.6,1.50660384]
[1642914655558,2.95,2432.0,2429.4,2.05032012]
[1642914655559,0.01276722,2431.0,2430.3,2.90688278]
[1642914655761,0.00540688,2431.4,2430.3,0.00454738]
[1642914655958,0.1645,2431.3,2431.0,1.31747017]
[1642914656202,0.00113685,2431.3,2431.0,1.31747017]
[1642914656406,0.63219997,2432.3,2431.1,6.02138278]
[1642914656604,0.494,2432.3,2431.1,6.02308805]
[1642914656808,0.1643,2432.9,2431.2,24.00113685]
[1642914656809,3.684e-05,2431.6,2431.2,24.00113685]
[1642914657007,0.1643,2432.9,2431.7,0.00076316]
[1642914657402,0.00682108,2432.8,2431.7,0.00076316]
[1642914657603,0.1643,2432.7,2431.7,0.00076316]
[1642914657805,1.35058254,2432.1,2431.7,0.00076316]
[1642914658010,2.83557421,2432.5,2431.7,0.00076316]
[1642914658011,0.494,2432.3,2431.7,0.00076316]
[1642914658205,1.79136429,2432.5,2431.7,0.00076316]
[1642914658206,0.01219692,2431.9,2431.7,0.00076316]
[1642914658606,0.16543685,2431.8,2431.7,0.00076316]
[1642914659210,0.16544208,2432.4,2431.7,0.00076316]
[1642914659611,0.16885262,2432.4,2431.7,0.00076316]
[1642914659857,0.16885262,2432.4,2432.0,1.41490558]
[1642914660148,0.16885262,2432.4,2431.7,0.00076316]
[1642914660549,1.49095432,2432.1,2431.7,0.00076316]
[1642914660748,0.16771054,2432.4,2431.7,0.00076316]
[1642914660953,0.00113685,2432.0,2431.7,0.00076316]
[1642914661148,0.00284212,2432.3,2431.7,0.00076316]
[1642914661349,0.1643,2432.2,2431.7,1.11817111]
[1642914661547,0.16657369,2432.2,2431.7,1.11817111]
[1642914661749,0.00170527,2432.1,2431.7,1.11817111]
[1642914662248,0.00113685,2432.0,2431.7,1.11817111]
[1642914662447,0.00113685,2432.0,2431.7,0.00076316]
[1642914662648,0.1643,2431.9,2431.7,0.00076316]
[1642914662850,4.1,2432.1,2431.7,0.00076316]
[1642914663148,1.72467694,2432.0,2431.7,0.00076316]
[1642914663347,0.1643,2431.9,2431.7,0.00076316]
[1642914663608,0.1643,2431.9,2431.3,0.00170527]
[1642914663609,5.22073733,2431.8,2431.3,0.00170527]
[1642914663805,2.5,2431.6,2430.4,0.00187676]
[1642914664005,0.6585,2431.5,2430.5,0.00568424]
[1642914664205,0.6585,2431.5,2429.4,2.21482012]
[1642914664206,2.95,2431.2,2429.4,2.21482012]
[1642914664409,0.0123079,2430.0,2429.5,0.16013479]
[1642914664610,0.0123079,2430.0,2428.4,4.08275993]
[1642914664611,0.13163058,2429.4,2428.2,1.85617992]
[1642914664807,0.13163058,2429.4,2428.0,40.14552067]
[1642914664808,0.6585,2429.3,2428.1,5.25996924]
[1642914665006,0.9585,2429.3,2428.3,0.01250531]
[1642914665206,0.9585,2429.3,2428.1,5.21028363]
[1642914665505,0.00511581,2429.2,2428.0,37.07004048]
[1642914665707,0.1647,2429.1,2428.0,37.07004048]
[1642914665908,0.16924739,2429.1,2428.1,0.00113685]
[1642914666111,0.16924739,2429.1,2428.1,0.01384345]
[1642914666112,0.00397896,2429.0,2428.1,0.01384345]
[1642914666508,0.00341054,2428.9,2428.2,0.85622573]
[1642914666710,1.054e-05,2428.9,2428.3,25.48177509]
[1642914666910,0.13163058,2429.4,2428.4,0.1647]
[1642914666911,0.00124212,2428.8,2428.4,0.1647]
[1642914667109,0.13163058,2429.4,2428.8,0.01875788]
[1642914667550,0.13163058,2429.4,2428.9,0.00283158]
[1642914667948,1.20652111,2429.3,2428.9,0.00283158]
[1642914668150,1.20652111,2429.3,2427.6,0.494]
[1642914668151,0.81151934,2428.5,2427.8,0.02]
[1642914668352,0.1647,2428.4,2427.8,0.02]
[1642914668551,0.1647,2428.4,2427.9,0.00568424]
[1642914669154,0.01229118,2428.0,2426.4,3.06902653]
[1642914669366,0.01229118,2428.0,2426.0,3.06954975]
[1642914669367,0.01246153,2426.9,2426.0,3.06954975]
[1642914669558,6.172,2427.3,2425.5,1.06087758]
[1642914669559,0.01254237,2426.2,2425.5,1.06087758]
[1642914669759,6.172,2426.4,2424.0,40.10065537]
[1642914669760,0.96553748,2426.4,2424.0,40.10065537]
[1642914669958,6.16,2426.7,2426.4,5.3779948]
[1642914669959,24.0,2426.6,2426.4,5.3779948]
[1642914670154,1.24655456,2426.3,2425.6,0.01307373]
[1642914670357,1.24655456,2426.3,2424.0,37.18747216]
[1642914670358,1.0323255,2425.6,2424.4,0.20626]
[1642914670658,3.0969738,2426.1,2425.6,1.899851]
[1642914670659,5.9682151,2426.1,2425.6,1.899851]
[1642914670855,5.9682151,2426.1,2424.5,0.00625266]
[1642914670856,0.494,2425.5,2424.5,0.00625266]
[1642914671096,0.494,2425.4,2424.6,0.69152573]
[1642914671302,0.494,2425.3,2424.6,0.69152573]
[1642914671497,0.474,2425.3,2424.7,0.00511582]
[1642914672397,4.13155019,2426.0,2424.8,0.20626]
[1642914672398,0.00227369,2426.0,2424.8,0.20626]
[1642914672597,0.00227369,2426.0,2424.9,1.44308869]
[1642914672800,5.27e-06,2425.9,2425.0,3.33829288]
[1642914673004,5.27e-06,2425.9,2425.1,1.0]
[1642914673198,0.00227896,2426.3,2425.3,0.01249363]
[1642914673404,0.00227896,2426.3,2425.4,0.38316934]
[1642914673598,0.01255401,2427.3,2425.4,0.38316934]
[1642914673599,1.054e-05,2426.2,2425.5,2.96723288]
[1642914673808,1.054e-05,2426.2,2425.6,1.57501398]
[1642914674005,0.00569477,2427.2,2425.7,2.96723288]
[1642914674208,0.00569477,2427.2,2425.8,1.37106]
[1642914674404,55.92296897,2428.1,2427.4,0.03706597]
[1642914674605,55.68499817,2428.1,2427.4,0.03706597]
[1642914674861,0.01721809,2428.0,2427.4,0.03706597]
[1642914675257,1.03587738,2427.9,2427.4,0.03706597]
[1642914675450,1.22109644,2427.6,2427.4,0.03706597]
[1642914675650,0.494,2427.5,2427.4,0.03706597]
[1642914675851,0.49627369,2427.5,2427.4,0.03706597]
[1642914676458,0.00227369,2427.5,2427.4,0.03706597]
[1642914676656,7.369e-05,2427.5,2427.4,2.98706597]
[1642914676855,7.369e-05,2427.5,2427.4,3.19332597]
[1642914677053,7.369e-05,2427.5,2427.4,4.49332597]
[1642914677254,7.369e-05,2427.5,2427.4,3.19332597]
[1642914677657,7.369e-05,2427.5,2427.4,0.24332597]
[1642914677852,7.369e-05,2427.5,2427.4,0.03706597]
[1642914678057,0.01246628,2427.5,2427.4,0.03706597]
[1642914678254,0.01246628,2427.5,2427.4,1.41613995]
[1642914678603,7.369e-05,2427.5,2427.4,3.16613995]
[1642914678807,7.369e-05,2427.5,2427.4,1.78706597]
[1642914679206,4.10007369,2427.5,2427.4,1.78706597]
[1642914679405,4.10007369,2427.5,2427.4,1.99332597]
[1642914680006,4.10007369,2427.5,2427.4,3.02931332]
[1642914680404,4.10007369,2427.5,2427.4,3.23557332]
[1642914680610,4.10007369,2427.5,2427.4,3.02931332]
[1642914680806,4.10007369,2427.5,2427.4,1.27931332]
[1642914681609,4.10007369,2427.5,2427.4,2.92931332]
[1642914683048,4.10007369,2427.5,2427.4,0.03706597]
[1642914683049,5.31923468,2427.5,2427.4,0.03706597]
[1642914683549,4.10007369,2427.5,2427.4,0.03706597]
[1642914684553,5.97835084,2427.5,2427.4,0.03706597]
[1642914685954,4.50482996,2427.5,2427.4,0.03706597]
[1642914686205,2.97032168,2428.2,2427.5,1.10152656]
[1642914686402,0.40475627,2428.1,2427.5,1.10152656]
[1642914686601,0.00227369,2427.9,2427.5,1.10152656]
[1642914686807,1.16487879,2427.6,2427.5,1.10152656]
[1642914687003,1.55512691,2427.6,2427.5,1.10152656]
[1642914687404,0.39024812,2427.6,2427.5,1.10152656]
[1642914688606,0.7032426,2427.6,2427.5,1.10152656]
[1642914690061,4.8032426,2427.6,2427.5,1.10152656]
[1642914690459,4.8032426,2427.6,2427.5,0.60152656]
[1642914691460,4.8032426,2427.6,2427.5,2.50152656]
[1642914691660,4.8032426,2427.6,2427.5,0.60152656]
[1642914692064,4.8032426,2427.6,2427.5,0.55152656]
[1642914692665,4.8032426,2427.6,2427.5,2.656e-05]
[1642914692862,4.8032426,2427.6,2426.4,2.96049466]
[1642914692863,1.7,2427.4,2426.4,2.96049466]
[1642914693060,1.17820641,2426.7,2425.9,0.0086379]
[1642914693259,1.93278018,2426.7,2425.9,0.00181682]
[1642914693702,0.75457377,2426.7,2426.3,1.23704184]
[1642914694501,42.3061118,2427.4,2427.1,2.26372131]
[1642914694705,1.76430741,2427.3,2427.1,2.26372131]
[1642914694902,0.76430741,2427.2,2427.1,2.26372131]
[1642914695101,2.32744762,2427.2,2427.1,2.26372131]
[1642914695301,2.32744762,2427.2,2427.1,2.265995]
[1642914695502,0.76430741,2427.2,2427.1,2.265995]
[1642914696404,2.24360646,2427.2,2427.1,2.265995]
[1642914698361,0.76430741,2427.2,2427.1,2.265995]
[1642914698563,0.76430741,2427.2,2427.1,5.21722538]
[1642914698564,0.78844936,2427.2,2427.1,5.21722538]
[1642914698767,0.78844936,2427.2,2427.1,2.265995]
[1642914698969,0.78844936,2427.2,2427.1,2.472255]
[1642914699569,0.78844936,2427.3,2427.1,2.265995]
[1642914699778,2.13487058,2427.3,2427.1,2.265995]
[1642914699967,0.78844936,2427.2,2427.1,2.26372131]
[1642914700169,0.78844936,2427.2,2426.0,0.20626]
[1642914700372,0.33524285,2427.2,2427.1,0.00227369]
[1642914700571,4.73524285,2427.2,2427.1,0.00227369]
[1642914700775,2.95,2427.1,2425.7,0.00181682]
[1642914700971,0.494,2427.0,2426.0,0.00625266]
[1642914701205,0.82924285,2427.0,2426.0,0.00625266]
[1642914701405,1.43703362,2426.9,2426.0,0.00625266]
[1642914701607,1.48123317,2425.9,2425.7,0.00795793]
[1642914701805,1.81647602,2425.9,2425.7,0.00795793]
[1642914702608,0.32050502,2425.8,2425.7,0.00795793]
[1642914703012,0.32050502,2425.8,2425.0,0.02]
[1642914703211,4.38072812,2425.8,2425.0,0.02]
[1642914703411,4.38072812,2425.8,2425.1,0.00341054]
[1642914703412,0.32050502,2425.7,2425.1,0.00341054]
[1642914703613,1.32050502,2425.7,2425.1,0.00341054]
[1642914703814,0.32050502,2425.6,2425.1,0.00341054]
[1642914704015,1.22839359,2425.5,2425.1,0.00341054]
[1642914704215,0.32050502,2425.4,2425.1,0.00341054]
[1642914704414,1.72239359,2425.5,2425.1,0.00341054]
[1642914704617,0.3,2425.4,2425.1,0.00341054]
[1642914704862,1.72239359,2425.5,2425.1,0.00341054]
[1642914705057,3.02239359,2425.5,2425.1,0.00341054]
[1642914705752,2.02239359,2425.5,2425.1,0.00341054]
[1642914706359,2.1,2425.2,2424.6,0.02]
[1642914706559,2.1,2425.2,2423.8,0.00181682]
[1642914706560,0.01251272,2424.8,2423.8,0.00181682]
[1642914706760,0.494,2424.7,2423.8,0.00181682]
[1642914707159,0.794,2424.7,2423.9,1.23835097]
[1642914707359,0.494,2424.7,2423.9,1.23835097]
[1642914707567,0.494,2425.1,2424.0,2.44305132]
[1642914707760,1.0,2425.2,2424.0,2.44305132]
[1642914707960,1.0,2425.2,2424.1,0.00568424]
[1642914707961,0.3,2425.2,2424.1,0.00568424]
[1642914708160,0.05170526,2425.4,2424.5,1.22944681]
[1642914708360,1.1796497,2424.8,2424.1,0.00568424]
[1642914708605,1.1796497,2424.8,2423.9,0.20626]
[1642914708606,1.1796497,2424.8,2424.6,0.00284212]
[1642914708805,1.1796497,2424.8,2424.0,0.00625266]
[1642914709411,1.2131,2424.9,2424.0,0.00625266]
[1642914709611,1.094,2424.8,2424.0,0.00625266]
[1642914709811,2.12669,2424.8,2424.0,0.00625266]
[1642914710009,6.22669,2424.8,2423.6,0.00852635]
[1642914710216,7.22669,2424.8,2423.6,0.00852635]
[1642914710413,1.44409886,2424.1,2423.6,0.00852635]
[1642914710611,0.494,2424.0,2423.6,0.00852635]
[1642914710821,0.494,2424.0,2422.6,0.01080946]
[1642914710822,1.95,2423.9,2422.6,0.01080946]
[1642914711013,0.49856936,2423.8,2422.6,0.01080946]
[1642914711212,0.49513684,2423.8,2422.7,0.00511582]
[1642914711512,0.49513684,2423.8,2422.7,1.31617043]
[1642914711513,1.49527944,2423.0,2422.7,1.31617043]
[1642914711715,1.79513684,2423.8,2422.7,1.31617043]
[1642914711913,1.79513684,2423.8,2422.8,0.00454739]
[1642914712118,1.0332052,2423.6,2422.8,0.00454739]
[1642914712368,0.0085149,2423.4,2422.8,0.00454739]
[1642914712560,0.494,2423.3,2422.8,0.00454739]
[1642914712762,0.494,2423.3,2422.6,0.01080946]
[1642914712763,3.444,2423.2,2422.6,0.01080946]
[1642914712957,1.44203199,2422.7,2422.6,0.01080946]
[1642914713156,2.23603199,2422.7,2422.6,0.01080946]
[1642914713358,2.23603199,2422.7,2422.6,0.01194631]
[1642914713558,2.95,2422.6,2422.1,0.02]
[1642914713762,0.494,2422.5,2422.1,0.0001]
[1642914713960,1.494,2422.5,2422.2,0.00227369]
[1642914714160,2.094,2422.5,2421.1,3.43580349]
[1642914714360,2.094,2422.5,2421.2,2.60898046]
[1642914714361,0.00113684,2422.4,2421.2,2.60898046]
[1642914714563,3.23798868,2422.7,2422.5,3.25118834]
[1642914714765,0.494,2422.9,2422.5,3.25118834]
[1642914714963,0.00170527,2422.7,2422.6,5.69153378]
[1642914715165,5.27e-06,2422.7,2422.6,0.20626]
[1642914715369,0.2763,2423.9,2422.7,0.09331052]
[1642914715563,0.2763,2423.9,2422.8,0.20626]
[1642914715863,0.00625266,2423.8,2422.9,0.01713225]
[1642914716107,0.00625266,2423.8,2423.0,1.26782338]
[1642914716308,0.00568424,2423.7,2423.1,4.47904291]
[1642914716509,0.00568424,2423.7,2423.1,4.17904291]
[1642914716708,0.00511582,2423.6,2423.1,1.55599159]
[1642914717111,0.00454739,2423.5,2423.2,0.20626]
[1642914717311,0.00454739,2423.5,2423.2,2.73003938]
[1642914717512,0.00454739,2423.5,2423.1,1.55599159]
[1642914717513,0.28878155,2423.9,2423.1,1.55599159]
[1642914717713,0.28878155,2423.9,2422.7,0.09331052]
[1642914717714,0.78278155,2423.9,2422.7,0.09331052]
[1642914717915,0.00625266,2423.8,2422.8,0.20626]
[1642914718115,0.00625266,2423.8,2422.8,3.09842874]
[1642914718311,0.00568424,2423.7,2422.8,4.19242874]
[1642914718514,0.00568424,2423.7,2422.9,1.0]
[1642914718716,0.00511582,2423.6,2423.0,2.12924675]
[1642914718918,0.00511582,2423.6,2423.5,0.6830475]
[1642914719115,1.80440478,2423.9,2423.5,0.6830475]
[1642914719116,0.2763,2423.9,2423.5,0.6830475]
[1642914719515,0.00625266,2423.8,2423.5,0.6830475]
[1642914719957,0.00568424,2423.7,2423.5,0.6830475]
[1642914720357,0.2763,2423.9,2423.6,3.15626]
[1642914720662,0.2763,2423.9,2423.4,1.1113567]
[1642914720663,0.00625266,2423.8,2423.4,1.1113567]
[1642914721061,4.10568424,2423.7,2422.7,0.09331052]
[1642914721458,0.00511582,2423.6,2422.7,0.04331052]
[1642914721858,0.00454739,2423.5,2422.7,0.04331052]
[1642914722060,0.00454739,2423.5,2423.4,1.19073571]
[1642914722260,0.00397897,2423.4,2423.3,1.18726012]
[1642914722458,0.00454739,2423.5,2422.7,0.04331052]
[1642914722659,0.00397897,2423.4,2422.7,0.04331052]
[1642914723060,0.00341055,2423.3,2422.7,0.04331052]
[1642914723267,1.35067054,2423.3,2422.5,2.21499886]
[1642914723614,0.20915212,2423.2,2422.0,0.80502351]
[1642914723816,0.494,2423.1,2421.7,0.53273]
[1642914724019,0.0129815,2422.7,2422.1,0.00341054]
[1642914724317,4.02912201,2423.0,2422.5,1.526042]
[1642914724318,0.00170528,2423.0,2422.5,1.526042]
[1642914724722,2.96277784,2423.0,2421.3,5.5698]
[1642914724920,2.96277784,2423.0,2420.8,1.2348]
[1642914724921,0.50025266,2422.9,2420.8,1.2348]
[1642914725119,0.20631,2422.8,2421.1,23.95227369]
[1642914725321,0.00568424,2422.8,2421.2,2.76107346]
[1642914725619,0.0073895,2422.7,2421.3,23.95227369]
[1642914725824,0.25199998,2422.6,2421.3,23.95227369]
[1642914726020,1.25913106,2422.6,2421.2,1.10763265]
[1642914726320,0.00625266,2422.5,2421.3,2.76107346]
[1642914726519,0.1638,2422.4,2421.3,2.76107346]
[1642914726724,0.00568423,2422.4,2421.3,2.76107346]
[1642914726917,0.1638,2422.5,2421.8,1.42775222]
[1642914726918,0.00511581,2422.3,2421.8,1.42775222]
[1642914727118,0.00511581,2422.3,2421.2,24.0]
[1642914727355,0.16834739,2422.2,2421.3,2.76107346]
[1642914727556,0.00454739,2422.2,2421.4,23.85]
[1642914727758,0.00397896,2422.1,2421.6,23.85]
[1642914727956,0.00397896,2422.1,2421.5,0.1651]
[1642914728157,0.00341054,2422.0,2421.3,1.51158689]
[1642914728363,0.00341054,2422.0,2421.9,2.06740725]
[1642914728558,0.08819998,2422.6,2421.9,2.06740725]
[1642914728760,0.1651,2423.0,2422.0,2.76107346]
[1642914728964,0.00625266,2422.5,2422.0,2.92617346]
[1642914729159,0.00625266,2422.5,2421.9,1.96740725]
[1642914729359,0.00568423,2422.4,2421.9,1.96740725]
[1642914729560,0.00568423,2422.4,2422.1,24.0]
[1642914729761,41.18512019,2423.3,2422.4,24.0]
[1642914729960,41.18512019,2423.3,2422.5,3.93194815]
[1642914730164,41.18512019,2423.3,2422.5,0.00446315]
[1642914730359,41.18512019,2423.3,2422.6,0.00389473]
[1642914730360,0.165,2423.2,2422.6,0.00389473]
[1642914730562,1.18714445,2423.1,2422.8,2.6430249]
[1642914730759,1.18714445,2423.1,2422.1,0.00673685]
[1642914730968,5.89561176,2423.0,2422.2,0.1651]
[1642914731214,5.89561176,2423.0,2422.1,0.00454739]
[1642914731215,0.01297721,2422.3,2422.1,0.00454739]
[1642914731610,1.46204123,2421.8,2421.5,1.25379079]
[1642914731810,0.1623,2422.2,2421.9,1.43933105]
[1642914732007,0.1623,2422.2,2421.6,0.0073895]
[1642914732207,0.1623,2422.2,2422.0,0.00511581]
[1642914732414,0.1623,2422.2,2421.0,0.02]
[1642914732415,0.70031,2422.1,2421.1,0.01023162]
[1642914732615,0.01245111,2421.7,2421.1,0.01023162]
[1642914732818,0.494,2421.6,2421.1,0.01023162]
[1642914733018,1.79732788,2421.6,2421.1,0.01023162]
[1642914733216,1.7890288,2421.6,2421.1,0.01023162]
[1642914733417,2.8229288,2421.6,2421.1,0.01023162]
[1642914733619,1.7890288,2421.6,2421.1,0.01023162]
[1642914733815,0.494,2421.6,2421.1,0.01023162]
[1642914734020,1.2400745,2422.0,2421.1,0.01023162]
[1642914734021,0.494,2422.0,2421.2,1.08663026]
[1642914734218,0.494,2422.3,2421.9,1.47982758]
[1642914734421,0.494,2422.6,2421.9,1.47982758]
[1642914734717,0.494,2422.6,2422.0,0.00511581]
[1642914734955,0.494,2422.6,2422.2,1.10399589]
[1642914735157,0.13819997,2423.0,2422.2,1.10399589]
[1642914735357,0.13819997,2423.0,2422.6,1.48199999]
[1642914735562,0.70031,2422.9,2422.6,1.48199999]
[1642914735756,0.70031,2422.9,2421.3,0.00172827]
[1642914735757,2.99578914,2422.7,2421.3,0.00172827]
[1642914735960,1.52746,2422.6,2421.3,0.00172827]
[1642914736163,1.52746,2422.6,2421.4,0.0073895]
[1642914736363,0.494,2422.6,2421.4,0.0073895]
[1642914736563,1.36282579,2422.7,2422.5,1.30399047]
[1642914736764,1.35051665,2422.7,2421.3,2.3693]
[1642914736963,1.35051665,2422.7,2421.4,2.78191176]
[1642914737265,1.35051665,2422.7,2421.5,0.00682108]
[1642914737662,1.27047024,2421.8,2421.7,1.37887365]
[1642914737864,1.19892302,2422.2,2421.8,2.54094048]
[1642914738261,41.25281077,2422.8,2421.9,1.33160394]
[1642914738262,0.01266411,2422.8,2421.9,1.33160394]
[1642914738465,1.52722,2423.1,2421.9,1.33160394]
[1642914738717,0.494,2423.1,2422.0,0.00397896]
[1642914738916,0.0126632,2422.7,2422.0,0.00397896]
[1642914739317,0.01226455,2422.2,2421.9,0.00454738]
[1642914739514,0.01226455,2422.2,2421.8,2.54094048]
[1642914739515,0.20631,2422.0,2421.8,2.54094048]
[1642914739714,0.494,2421.9,2421.8,2.54094048]
[1642914739914,1.63669193,2421.9,2421.8,2.54094048]
[1642914740915,1.63669193,2421.9,2421.0,0.02]
[1642914741116,0.01219715,2421.3,2420.5,0.02]
[1642914741322,0.70031,2421.2,2421.1,0.00454739]
[1642914741618,1.7071069,2421.2,2420.0,0.34627566]
[1642914741817,1.7071069,2421.2,2420.6,0.00284212]
[1642914742016,2.2134169,2421.2,2420.6,0.00284212]
[1642914742456,0.00580315,2421.1,2420.6,0.00284212]
[1642914742660,0.494,2421.0,2420.6,0.00284212]
[1642914742855,0.494,2420.9,2420.6,0.00284212]
[1642914743058,1.77374767,2420.8,2420.6,0.00284212]
[1642914743356,46.79388542,2421.5,2420.6,0.00284212]
[1642914743557,0.49513684,2421.3,2420.7,1.28683071]
[1642914743762,0.494,2421.3,2420.7,1.28683071]
[1642914743963,0.494,2421.3,2420.8,0.00170527]
[1642914744360,1.11608547,2421.0,2420.8,0.00170527]
[1642914744761,0.00170527,2421.4,2421.2,1.03880725]
[1642914745263,0.00113685,2421.3,2421.2,1.03880725]
[1642914746114,3.64357758,2421.2,2420.8,0.00170527]
[1642914746309,0.494,2421.1,2420.8,0.00170527]